bitfinex/quotes_ETHUSD_20240729
["timestamp","ask_amount","ask_price","bid_price","bid_amount"]
[1722219527610,3.316547,3312.0,3310.7,0.06039017]
[1722219527611,0.55,3311.9,3311.2,0.12638087]
[1722219527813,2.41565,3311.8,3311.0,2.41613]
[1722219527988,2.41565,3311.8,3311.0,2.899375]
[1722219528179,2.41565,3311.8,3311.1,0.12646447]
[1722219528691,0.31638325,3311.7,3311.1,0.12646447]
[1722219528887,2.73206325,3311.7,3311.1,0.12646447]
[1722219529089,2.41582,3311.5,3311.1,0.12646447]
[1722219529288,2.73205325,3311.7,3310.1,8.36420482]
[1722219529289,0.31638325,3311.7,3311.0,2.41618]
[1722219529490,0.31638325,3311.7,3310.9,2.41624]
[1722219529798,0.31638325,3311.7,3311.1,2.41605]
[1722219530199,2.73207325,3311.7,3311.2,0.12641902]
[1722219530512,0.31638325,3311.7,3311.2,0.12641902]
[1722219530715,2.73207325,3311.7,3310.9,2.41625]
[1722219530918,2.73207325,3311.7,3311.3,0.12634331]
[1722219531218,2.73207325,3311.7,3310.5,0.06039044]
[1722219531219,2.41582,3311.5,3311.4,0.12626761]
[1722219531426,2.41591,3311.4,3310.8,3.0]
[1722219531733,5.99698,3311.3,3309.9,2.4015]
[1722219532023,3.64140072,3311.3,3310.1,2.41683]
[1722219532319,0.55,3311.6,3310.2,0.12719604]
[1722219532320,2.41648,3310.6,3310.2,0.12719604]
[1722219532481,3.581,3310.8,3310.2,0.12719604]
[1722219532681,3.581,3310.8,3310.1,2.41684]
[1722219532887,3.581,3310.8,3310.3,0.12712029]
[1722219532888,5.99739,3310.8,3310.3,0.12712029]
[1722219533085,3.581,3310.8,3310.2,0.12719604]
[1722219533285,5.99737,3310.8,3310.4,0.12704454]
[1722219533516,5.99737,3310.8,3310.3,0.12712029]
[1722219533824,2.41656,3310.5,3310.4,0.12704454]
[1722219534183,4.422364,3310.8,3309.5,2.41723]
[1722219534507,2.41657,3310.5,3309.7,2.41707]
[1722219534683,2.41662,3310.4,3309.6,0.12765063]
[1722219535020,0.61040072,3310.7,3309.7,0.12757485]
[1722219535227,2.41706,3309.8,3309.7,0.12757485]
[1722219535380,2.41706,3309.8,3308.7,2.41785]
[1722219535381,2.41732,3309.5,3308.7,2.41785]
[1722219535818,2.41736,3309.4,3308.4,2.47850064]
[1722219536032,2.41736,3309.4,3308.6,2.41792]
[1722219536181,2.41736,3309.4,3308.3,5.94740482]
[1722219536182,2.41743,3309.3,3308.3,5.94740482]
[1722219536590,3.581,3309.3,3308.5,2.41799]
[1722219536757,2.41721,3309.6,3308.8,2.41779]
[1722219537039,2.41721,3309.6,3308.1,2.2701]
[1722219537040,2.41773,3308.9,3308.1,2.41825]
[1722219537203,2.41765,3309.0,3308.2,2.41822]
[1722219537396,0.55,3309.2,3308.6,2.41787]
[1722219537729,3.581,3309.8,3309.0,2.41763]
[1722219537930,3.581,3309.8,3308.8,2.41776]
[1722219538132,2.41735,3309.4,3308.5,2.41799]
[1722219538434,2.41735,3309.4,3308.6,2.41793]
[1722219538731,2.41735,3309.4,3308.3,2.659972]
[1722219538732,2.41743,3309.3,3308.4,2.6840472]
[1722219539240,0.55,3309.7,3308.8,2.41777]
[1722219539241,2.96715,3309.7,3308.8,2.41777]
[1722219539528,2.96715,3309.7,3308.9,0.12852866]
[1722219539734,3.863665,3309.7,3308.9,0.12852866]
[1722219539937,3.581,3309.8,3309.0,2.41764]
[1722219540235,6.0715,3310.2,3309.2,2.41749]
[1722219540437,0.50327647,3310.6,3309.2,2.41749]
[1722219540438,2.41649,3310.6,3309.3,0.06042212]
[1722219540635,2.41648,3310.6,3309.7,2.41712]
[1722219540861,2.3355,3310.8,3310.1,2.41683]
[1722219541002,2.3355,3310.8,3309.9,2.41699]
[1722219541201,4.75184,3310.8,3310.2,0.1275435]
[1722219541531,2.41655,3310.5,3309.6,2.41714]
[1722219541717,8.33284,3310.8,3309.5,2.41721]
[1722219541718,2.4167,3310.3,3309.5,2.41721]
[1722219541917,6.749784,3310.8,3309.7,0.12792232]
[1722219542120,2.4167,3310.3,3309.6,0.36971909]
[1722219542435,6.749784,3310.8,3309.7,0.12808286]
[1722219542436,2.41686,3310.1,3309.7,0.12808286]
[1722219542637,2.41686,3310.1,3309.3,2.41742]
[1722219542844,2.41686,3310.1,3309.8,0.12801762]
[1722219543134,2.47718072,3310.2,3309.2,3.0]
[1722219543343,4.83382,3310.0,3309.9,0.12794186]
[1722219543498,2.41701,3309.9,3308.6,5.94740482]
[1722219543699,2.41701,3309.9,3308.4,0.2659972]
[1722219543700,2.4171,3309.8,3309.0,2.41764]
[1722219543906,0.60482279,3310.0,3308.7,2.54665269]
[1722219544138,0.60482279,3310.0,3309.1,0.12854944]
[1722219544139,2.41719,3309.7,3309.1,0.12854944]
[1722219544345,2.41719,3309.7,3308.8,2.41773]
[1722219544346,2.41721,3309.6,3308.6,2.41793]
[1722219544545,5.99842,3309.3,3309.2,0.12847364]
[1722219544705,5.99842,3309.3,3308.2,2.41821]
[1722219544706,2.41757,3309.1,3308.2,2.41821]
[1722219544908,2.41765,3309.0,3308.2,2.41821]
[1722219545117,2.41765,3309.0,3308.3,0.129156]
[1722219545414,2.41772,3308.9,3308.3,0.129156]
[1722219545633,2.9675,3309.2,3308.4,2.41808]
[1722219545634,0.55,3309.2,3308.4,2.41808]
[1722219545834,0.55,3309.2,3308.4,2.54716017]
[1722219546237,0.55,3309.2,3308.4,0.12908017]
[1722219546238,2.41757,3309.1,3308.4,0.12908017]
[1722219546412,0.55,3309.2,3308.4,2.54715017]
[1722219546613,3.622346,3309.2,3308.4,2.54715017]
[1722219546843,1.204836,3309.2,3308.6,2.41793]
[1722219547142,0.55,3309.2,3308.6,2.41793]
[1722219547348,0.55,3309.2,3308.7,0.12885269]
[1722219547546,2.41765,3309.0,3308.7,0.12885269]
[1722219547747,0.55,3309.2,3308.8,0.12877687]
[1722219548052,0.55,3309.2,3308.3,2.41815]
[1722219548351,0.55,3309.2,3308.6,2.41793]
[1722219548718,0.55,3309.2,3308.7,0.12888825]
[1722219549260,2.9675,3309.2,3308.7,0.12888825]
[1722219549465,2.9675,3309.2,3308.4,2.41808]
[1722219549779,2.41787,3308.7,3307.7,2.41858]
[1722219550069,2.47834072,3308.6,3308.5,0.12918477]
[1722219550273,2.41802,3308.5,3307.8,2.4185]
[1722219550434,2.47842072,3308.5,3307.8,2.4185]
[1722219550764,2.47842072,3308.5,3307.9,0.12964378]
[1722219550928,5.99917,3308.3,3307.4,5.94740482]
[1722219551129,5.99917,3308.3,3306.8,2.2573]
[1722219551130,3.02866072,3308.2,3307.5,0.12994724]
[1722219551366,0.55,3308.2,3307.5,0.12994724]
[1722219551629,0.55,3308.2,3307.5,2.41869]
[1722219551938,0.55,3308.2,3307.6,0.12538741]
[1722219552140,2.41794,3308.6,3307.6,2.4186]
[1722219552342,2.41794,3308.6,3307.8,2.41847]
[1722219552529,0.55,3308.5,3307.8,2.41847]
[1722219552729,0.55,3308.5,3307.9,0.12516114]
[1722219552996,0.55,3308.7,3308.1,2.41829]
[1722219553266,2.41794,3308.6,3308.0,0.12508528]
[1722219553455,2.41794,3308.6,3308.2,0.12493359]
[1722219553762,2.41814,3308.4,3307.6,2.41863]
[1722219554262,2.41816,3308.3,3307.7,0.12531286]
[1722219554468,0.61040072,3308.2,3307.7,0.12531286]
[1722219554680,2.41845,3307.9,3307.2,5.94740482]
[1722219554843,1.27135679,3308.2,3307.2,5.94740482]
[1722219554844,2.41831,3308.1,3307.8,0.12522645]
[1722219555042,2.41838,3308.0,3307.3,2.41884]
[1722219555250,3.68961679,3308.2,3307.9,0.12515059]
[1722219555448,2.41836,3308.1,3307.3,2.41887]
[1722219555650,2.41836,3308.1,3308.0,0.12507474]
[1722219555930,0.55,3308.1,3306.4,2.41948]
[1722219556131,2.41867,3307.6,3306.8,2.41924]
[1722219556431,5.99953,3307.8,3307.0,2.4191]
[1722219556629,0.55,3307.7,3307.0,2.4191]
[1722219556863,2.96861,3307.7,3307.1,0.12575759]
[1722219557064,0.55,3307.7,3307.0,2.4191]
[1722219557270,2.4187,3307.6,3307.2,0.1256817]
[1722219557561,2.4187,3307.6,3306.3,8.36698482]
[1722219557562,2.4187,3307.6,3307.3,0.12560582]
[1722219557863,0.55,3307.5,3306.8,2.4192]
[1722219558165,2.47914072,3307.5,3306.7,2.4193]
[1722219558329,0.55,3307.4,3306.6,2.4194]
[1722219558535,2.47930072,3307.3,3306.7,0.12606121]
[1722219559068,0.31678983,3307.2,3306.7,0.12606121]
[1722219559282,0.31678983,3307.2,3306.7,2.54534121]
[1722219559781,0.31678983,3307.2,3306.7,0.12606121]
[1722219560082,0.31678983,3307.2,3306.5,2.41943]
[1722219560285,0.37719055,3307.2,3306.8,0.12621596]
[1722219560461,0.94581906,3307.1,3306.3,2.41961]
[1722219560782,0.55,3307.1,3306.4,2.41954]
[1722219560976,2.96903,3307.1,3306.4,2.54605963]
[1722219561354,2.41911,3307.0,3306.4,0.12651963]
[1722219561677,3.02959072,3306.9,3306.2,2.41969]
[1722219561878,3.02959072,3306.9,3305.6,8.36747482]
[1722219561879,5.42443,3307.1,3306.5,0.12644371]
[1722219562074,2.41933,3306.7,3305.9,2.41989]
[1722219562275,2.41933,3306.7,3306.6,0.12636779]
[1722219562586,2.41933,3306.7,3305.7,2.42004]
[1722219562587,2.41952,3306.5,3305.7,2.42004]
[1722219562787,2.41952,3306.5,3305.8,2.41998]
[1722219563261,0.06040072,3306.4,3305.6,8.36753482]
[1722219563464,2.96934,3306.7,3305.7,0.83675348]
[1722219563683,2.96934,3306.7,3305.7,2.42004]
[1722219563684,0.55,3306.6,3305.7,2.42004]
[1722219564057,0.55,3306.7,3306.1,2.41971]
[1722219564262,0.55,3306.7,3306.1,2.41976]
[1722219564560,0.55,3306.7,3306.2,2.41969]
[1722219564796,0.55,3306.9,3306.2,2.41969]
[1722219565000,0.55,3306.9,3306.2,0.241969]
[1722219565167,0.31678983,3307.2,3306.7,2.41928]
[1722219565358,0.31678983,3307.2,3306.5,2.41942]
[1722219565558,2.73579983,3307.2,3306.3,2.41961]
[1722219565867,2.41904,3307.1,3306.2,2.41967]
[1722219566071,2.41918,3306.9,3306.2,2.41967]
[1722219566378,2.41904,3307.1,3306.4,2.41954]
[1722219566696,2.41911,3307.0,3306.3,0.483941]
[1722219566895,0.31678983,3307.2,3306.5,2.41946]
[1722219567186,0.55,3307.1,3306.3,2.41957]
[1722219567355,2.41912,3307.0,3306.2,2.41968]
[1722219567794,0.55,3307.1,3306.5,2.41947]
[1722219567969,0.55,3307.1,3306.6,2.41938]
[1722219568171,2.96905,3307.1,3306.1,2.41975]
[1722219568367,2.96905,3307.1,3305.7,11.36743482]
[1722219568368,3.581,3306.8,3305.7,8.36741482]
[1722219568584,2.41955,3306.4,3305.7,2.42001]
[1722219568881,2.41945,3306.6,3305.8,2.41998]
[1722219569194,2.96935,3306.7,3305.5,2.42018]
[1722219569195,3.02992072,3306.5,3305.9,0.12713935]
[1722219569357,2.83791279,3306.5,3305.5,2.42018]
[1722219569564,2.96955,3306.4,3305.6,2.54745722]
[1722219569753,2.41969,3306.2,3305.6,0.12736722]
[1722219569959,2.41969,3306.2,3305.6,3.12736722]
[1722219570260,2.41969,3306.2,3305.6,0.68212294]
[1722219570467,2.41977,3306.1,3305.6,0.12736722]
[1722219570667,2.48017072,3306.1,3305.4,2.42027]
[1722219570866,2.48017072,3306.1,3305.7,0.12729126]
[1722219571067,2.41975,3306.2,3305.5,2.4202]
[1722219571392,2.41975,3306.2,3305.2,2.4204]
[1722219571393,2.41977,3306.1,3305.3,2.4203]
[1722219571700,2.41977,3306.1,3305.6,0.1234419]
[1722219571898,2.48024072,3306.0,3305.4,0.37793905]
[1722219572500,2.48024072,3306.0,3305.5,0.1235244]
[1722219573011,2.48033072,3305.9,3305.5,0.1235244]
[1722219573228,2.48033072,3305.9,3305.5,0.1226544]
[1722219573360,0.06040072,3305.8,3304.3,2.42108]
[1722219573562,2.42039,3305.3,3304.2,12.42]
[1722219573759,2.42022,3305.5,3304.2,12.42]
[1722219573978,2.42035,3305.3,3304.5,2.42091]
[1722219574189,2.42052,3305.1,3304.6,0.12017611]
[1722219574390,0.31697202,3305.2,3304.6,0.12017611]
[1722219574590,0.31697202,3305.2,3304.9,2.42064]
[1722219574905,0.31697202,3305.2,3305.0,0.11987211]
[1722219575602,0.31697202,3305.2,3304.9,2.42059]
[1722219575904,0.31697202,3305.2,3305.1,0.11979613]
[1722219576071,0.31697202,3305.2,3305.0,0.11987211]
[1722219576274,0.31697202,3305.2,3305.1,2.4205]
[1722219576580,0.31697202,3305.2,3305.1,3.03639534]
[1722219576905,0.31697202,3305.2,3305.1,0.61589534]
[1722219577208,0.31697202,3305.2,3305.1,0.11979613]
[1722219577433,0.31697202,3305.2,3305.1,4.96079613]
[1722219577739,0.31697202,3305.2,3305.1,4.841]
[1722219577891,2.41963,3306.3,3305.1,4.841]
[1722219577892,2.41963,3306.3,3305.5,2.4202]
[1722219578072,2.41969,3306.2,3305.3,2.42035]
[1722219578275,2.41969,3306.2,3305.6,0.11941626]
[1722219578276,2.41989,3306.0,3305.6,0.11941626]
[1722219578632,2.41999,3305.8,3305.4,0.242035]
[1722219578834,10.77098,3305.8,3305.7,0.1193403]
[1722219579116,10.77098,3305.8,3304.8,2.42066]
[1722219579117,5.931,3305.8,3304.8,2.42066]
[1722219579294,2.42013,3305.6,3304.9,0.83680648]
[1722219579495,2.42013,3305.6,3304.9,0.11994811]
[1722219579799,2.9702,3305.5,3304.9,0.11994811]
[1722219580001,2.42036,3305.3,3304.6,2.67494461]
[1722219580204,2.4202,3305.5,3304.7,0.12010011]
[1722219580205,2.42025,3305.5,3304.7,0.12010011]
[1722219580388,0.55,3305.7,3304.7,0.12010011]
[1722219580389,2.97007,3305.7,3304.9,2.42059]
[1722219580577,2.42014,3305.6,3305.0,0.11987211]
[1722219581111,0.55,3305.5,3305.0,0.11987211]
[1722219581315,0.55,3305.5,3305.0,2.54039211]
[1722219581491,2.41992,3305.9,3305.0,2.42056]
[1722219581697,2.96999,3305.8,3305.1,0.36196091]
[1722219582320,0.55,3305.8,3305.1,2.78246091]
[1722219582631,0.55,3305.9,3305.1,2.78246091]
[1722219582912,0.55,3305.9,3305.3,2.42035]
[1722219583083,0.55,3305.9,3305.2,0.39803486]
[1722219583279,2.96993,3305.9,3305.2,0.39803486]
[1722219583518,2.96993,3305.9,3304.3,5.42103]
[1722219583519,2.42007,3305.7,3304.7,2.42076]
[1722219583810,2.42007,3305.7,3305.0,2.42057]
[1722219584212,2.42007,3305.7,3305.1,0.11993079]
[1722219584424,2.42035,3305.3,3305.1,0.11993079]
[1722219584605,2.48087072,3305.2,3304.4,3.0]
[1722219584780,2.4205,3305.1,3304.5,0.3]
[1722219584977,2.42062,3305.0,3304.5,0.42038679]
[1722219585183,2.4205,3305.1,3304.5,0.42038679]
[1722219585601,2.42037,3305.3,3304.5,0.42038679]
[1722219585801,2.4823,3305.4,3304.7,2.42078]
[1722219586147,4.90224,3305.9,3304.8,0.12015877]
[1722219586284,2.4823,3305.9,3305.1,2.42043]
[1722219586823,2.4823,3305.9,3305.2,0.11985481]
[1722219587230,4.90226,3305.9,3305.2,2.54026481]
[1722219587424,0.31697576,3306.0,3305.3,2.91641948]
[1722219587741,0.31697576,3306.0,3305.4,2.42022]
[1722219588038,2.73682576,3306.0,3305.5,0.11962689]
[1722219588328,0.31697576,3306.0,3305.3,2.91641948]
[1722219588490,0.31697576,3306.0,3305.6,0.11955092]
[1722219588689,0.31697576,3306.0,3305.4,0.29164195]
[1722219589023,0.31697576,3306.0,3305.5,0.11962689]
[1722219589732,2.42006,3305.7,3305.5,0.11962689]
[1722219590429,2.42006,3305.7,3305.0,2.42056]
[1722219590630,2.42006,3305.7,3305.6,0.11955092]
[1722219590798,2.42006,3305.7,3305.1,0.478156]
[1722219591217,2.42018,3305.6,3305.2,0.11985481]
[1722219591439,2.73683576,3306.0,3305.2,0.11985481]
[1722219591608,0.31697576,3306.0,3305.3,0.06050159]
[1722219591810,0.31697576,3306.0,3305.8,2.41994]
[1722219592008,0.31697576,3306.0,3305.9,0.11932306]
[1722219592492,0.31697576,3306.0,3305.7,2.42003]
[1722219592696,0.31697576,3306.0,3305.9,0.11932306]
[1722219592918,0.31697576,3306.0,3305.7,2.42003]
[1722219593132,0.31697576,3306.0,3305.8,0.242003]
[1722219593307,0.31697576,3306.0,3305.8,0.36140201]
[1722219593925,2.73681576,3306.0,3305.8,0.11939901]
[1722219594123,2.41991,3305.9,3305.4,0.25624564]
[1722219594335,2.4964,3305.9,3305.1,2.42046]
[1722219594536,0.55,3305.8,3305.2,2.42041]
[1722219594735,0.55,3305.8,3305.3,2.42034]
[1722219595124,0.31697576,3306.0,3305.0,3.0]
[1722219595452,0.31697576,3306.0,3305.7,2.42002]
[1722219595954,0.31697576,3306.0,3305.5,2.42015]
[1722219596136,0.31697576,3306.0,3305.6,0.242015]
[1722219596515,0.31697576,3306.0,3305.6,2.662145]
[1722219597123,0.31697576,3306.0,3305.6,0.242015]
[1722219597344,0.31697576,3306.0,3305.9,2.41991]
[1722219597546,2.41903,3307.1,3306.3,2.41956]
[1722219597748,2.41903,3307.1,3306.1,2.41972]
[1722219597749,2.41918,3306.9,3306.1,2.41972]
[1722219598059,2.41903,3307.1,3306.1,2.41972]
[1722219598256,2.41903,3307.1,3306.3,2.41957]
[1722219598459,0.31686781,3306.8,3306.3,2.41957]
[1722219598835,0.31686781,3306.8,3306.2,0.241972]
[1722219599243,0.31686781,3306.8,3306.2,2.661652]
[1722219599445,0.31686781,3306.8,3306.3,0.11891443]
[1722219599639,0.31686781,3306.8,3306.2,2.661652]
[1722219599855,0.31686781,3306.8,3306.4,2.41948]
[1722219600158,0.31686781,3306.8,3306.5,2.41942]
[1722219600361,0.31686781,3306.8,3306.5,2.53818258]
[1722219600568,0.31686781,3306.8,3306.7,4.83866]
[1722219600767,2.09573474,3308.9,3307.6,2.41867]
[1722219600768,2.267,3308.6,3307.6,2.41867]
[1722219600929,2.267,3308.6,3307.6,4.83734]
[1722219601132,2.267,3308.6,3307.6,4.95526772]
[1722219601572,2.41743,3309.3,3308.3,2.41815]
[1722219601573,2.41758,3309.1,3308.3,2.41815]
[1722219602033,2.2999,3309.2,3308.4,0.17776749]
[1722219602251,2.2999,3309.2,3308.5,2.418]
[1722219602661,2.2999,3309.2,3308.5,2.53524507]
[1722219603245,3.581,3309.4,3308.5,0.61258458]
[1722219603432,3.581,3309.4,3308.5,0.11724507]
[1722219603640,3.581,3309.4,3308.5,2.41794]
[1722219603879,3.581,3309.4,3308.7,2.41781]
[1722219604086,4.84167,3309.8,3308.9,2.41772]
[1722219604289,0.484167,3309.7,3308.9,2.41772]
[1722219604500,0.484167,3309.7,3309.0,0.11686598]
[1722219604648,2.41733,3309.5,3309.0,0.11686598]
[1722219604850,2.41733,3309.5,3308.7,2.41781]
[1722219605166,2.9491927,3309.5,3308.8,0.1170176]
[1722219605340,0.5318627,3309.5,3308.8,0.1170176]
[1722219605689,0.5318627,3309.5,3308.4,5.94740482]
[1722219605690,2.41761,3309.1,3308.4,5.94740482]
[1722219605843,2.96736,3309.4,3308.9,0.11694179]
[1722219606042,2.96736,3309.4,3308.3,2.41815]
[1722219606043,2.41757,3309.2,3308.3,2.41815]
[1722219606303,2.41743,3309.3,3307.8,8.36587482]
[1722219606304,2.41794,3308.6,3308.4,0.1173209]
[1722219606598,0.06040072,3309.1,3308.1,2.4183]
[1722219606599,2.41783,3308.8,3308.1,2.4183]
[1722219606879,0.55,3309.4,3308.1,0.24183]
[1722219607174,4.89635,3310.3,3309.1,2.41754]
[1722219607372,2.41677,3310.2,3309.1,2.41755]
[1722219607577,2.47717072,3310.2,3309.2,0.11629388]
[1722219607741,2.41699,3309.9,3309.2,0.11629388]
[1722219607941,2.41707,3309.8,3308.9,2.41765]
[1722219608180,2.41715,3309.7,3309.3,0.11621809]
[1722219608489,2.41709,3309.8,3308.9,2.4177]
[1722219608777,0.375,3310.0,3309.4,0.1161423]
[1722219608942,0.375,3310.0,3309.5,2.41727]
[1722219609144,0.375,3310.0,3309.6,2.4172]
[1722219609359,0.375,3310.0,3309.6,0.1154942]
[1722219609705,2.41706,3309.8,3309.7,0.11541842]
[1722219609887,5.47746607,3309.8,3309.7,0.11541842]
[1722219610086,2.41719,3309.7,3308.6,5.94740482]
[1722219610405,3.06040607,3309.8,3309.0,2.41763]
[1722219610556,0.375,3310.0,3308.6,5.94740482]
[1722219610901,2.79194,3310.0,3309.3,2.41742]
[1722219611218,0.375,3310.0,3309.2,2.41749]
[1722219611367,2.79193,3310.0,3309.2,2.41749]
[1722219611563,2.417,3309.9,3309.0,2.41764]
[1722219611777,2.41722,3309.6,3308.9,2.4177]
[1722219611988,2.47746072,3309.8,3308.9,2.4177]
[1722219611989,2.41715,3309.7,3308.9,2.4177]
[1722219612331,2.937874,3309.9,3309.1,2.41752]
[1722219612461,0.55,3309.8,3309.2,2.41749]
[1722219612666,0.520884,3309.9,3309.1,2.41751]
[1722219612861,0.520884,3309.9,3309.2,2.41743]
[1722219613113,0.520884,3309.9,3309.0,5.41764]
[1722219613114,0.520884,3309.9,3309.3,2.4174]
[1722219613365,0.375,3310.0,3309.4,2.41735]
[1722219613591,2.41699,3309.9,3309.2,2.41747]
[1722219613859,0.71458872,3310.0,3309.0,3.0]
[1722219614092,0.71458872,3310.0,3309.1,0.11587315]
[1722219614093,2.967,3309.9,3309.1,0.11587315]
[1722219614287,2.41743,3309.3,3308.6,8.36531482]
[1722219614482,2.41743,3309.3,3309.2,0.11579735]
[1722219614483,2.659163,3309.3,3309.2,0.11579735]
[1722219614699,2.41793,3308.7,3308.0,5.94740482]
[1722219615060,2.41817,3308.3,3307.3,5.94740482]
[1722219615265,2.41783,3308.8,3307.2,2.41895]
[1722219615266,2.41846,3307.9,3307.2,2.41895]
[1722219615463,2.41832,3308.1,3307.3,2.41889]
[1722219615660,2.41809,3308.4,3307.6,2.41862]
[1722219615900,0.55,3308.3,3307.6,2.41862]
[1722219616102,2.41817,3308.3,3307.5,2.41874]
[1722219616270,2.41801,3308.5,3307.5,2.41874]
[1722219616464,2.41801,3308.5,3307.7,2.41854]
[1722219616665,2.41835,3308.1,3307.3,2.41887]
[1722219616891,2.41854,3307.8,3307.1,3.0]
[1722219617077,2.41866,3307.7,3307.0,3.0]
[1722219617287,2.41866,3307.7,3306.9,3.0]
[1722219617599,2.41838,3308.0,3307.2,2.41895]
[1722219617799,2.41845,3307.9,3307.1,3.0]
[1722219618020,2.41839,3308.0,3307.1,2.41902]
[1722219618186,2.41839,3308.0,3307.1,0.541902]
[1722219618187,2.41853,3307.8,3307.1,0.541902]
[1722219618393,2.41853,3307.8,3307.1,3.541902]
[1722219618576,2.41859,3307.7,3306.9,3.0]
[1722219618904,2.41895,3307.3,3306.5,8.36687482]
[1722219619106,2.41897,3307.2,3306.5,2.41947]
[1722219619319,0.61040072,3307.6,3306.3,2.9277472]
[1722219619493,2.41896,3307.2,3306.4,2.41954]
[1722219619688,0.61040072,3307.6,3306.4,2.41954]
[1722219619689,2.41883,3307.4,3306.4,0.53473672]
[1722219619887,2.41897,3307.2,3306.4,2.95422672]
[1722219620085,0.06040072,3307.5,3306.4,2.95426672]
[1722219620284,0.55,3307.4,3306.8,2.41925]
[1722219621420,3.02922072,3307.4,3306.6,2.4194]
[1722219621606,3.02922072,3307.4,3306.7,2.41932]
[1722219621807,0.55,3307.4,3306.7,2.41932]
[1722219621984,2.41854,3307.8,3306.5,2.41945]
[1722219621985,2.41852,3307.8,3306.5,2.41945]
[1722219622189,2.4189,3307.3,3306.5,2.41945]
[1722219622495,0.06040072,3307.4,3306.4,0.53473672]
[1722219622706,2.41904,3307.1,3306.4,3.0]
[1722219622916,2.41933,3306.7,3306.0,8.36723482]
[1722219623096,2.47980072,3306.6,3305.5,2.42019]
[1722219623311,2.47980072,3306.6,3305.4,8.36767482]
[1722219623312,2.41974,3306.2,3305.4,8.36767482]
[1722219623558,0.06040072,3306.2,3305.4,6.7841723]
[1722219623819,2.41984,3306.0,3305.4,6.7841723]
[1722219623983,2.41999,3305.8,3305.4,5.94740482]
[1722219624189,0.06040072,3305.7,3304.7,5.94740482]
[1722219624398,2.41992,3305.9,3305.0,2.42052]
[1722219624594,2.41977,3306.1,3305.0,0.484116]
[1722219624932,0.55,3306.2,3305.6,2.42013]
[1722219625100,0.316944,3306.5,3305.0,5.94740482]
[1722219625298,4.89236,3306.8,3306.0,2.41981]
[1722219625499,0.55,3306.7,3306.1,2.41976]
[1722219625802,2.4731,3306.8,3305.9,2.41984]
[1722219625999,2.4731,3306.8,3305.6,3.0]
[1722219626302,2.4731,3306.8,3305.2,2.4204]
[1722219626303,0.06040072,3306.7,3305.2,2.4204]
[1722219626522,0.06040072,3306.7,3305.0,5.94740482]
[1722219626523,2.41985,3306.0,3305.0,5.94740482]
[1722219626708,2.41994,3305.9,3305.1,2.42049]
[1722219626910,3.64140072,3306.4,3305.4,2.42026]
[1722219626911,2.41967,3306.3,3305.4,2.42026]
[1722219627114,0.55,3306.2,3305.4,2.42026]
[1722219627434,2.41999,3305.8,3305.0,8.36795482]
[1722219627597,0.06040072,3305.7,3304.5,5.94740482]
[1722219627801,2.42028,3305.5,3304.5,5.94740482]
[1722219627999,2.3427,3305.8,3305.2,2.42037]
[1722219628297,0.55,3306.2,3305.4,2.42028]
[1722219628496,2.9697,3306.2,3305.4,2.42028]
[1722219628697,2.41977,3306.1,3305.3,2.42033]
[1722219628929,0.55,3306.2,3304.5,5.94740482]
[1722219628930,0.55,3306.2,3305.1,2.42046]
[1722219629106,2.41992,3305.9,3305.0,2.42052]
[1722219629310,2.42013,3305.6,3305.2,0.11162751]
[1722219629621,2.42013,3305.6,3304.9,5.42064]
[1722219629845,2.42013,3305.6,3305.3,0.11155153]
[1722219629846,2.42028,3305.4,3305.3,0.11155153]
[1722219630133,2.42028,3305.4,3304.5,5.94740482]
[1722219630134,2.42047,3305.2,3304.5,5.94740482]
[1722219630330,2.42047,3305.2,3304.2,2.42114]
[1722219630331,2.42057,3305.0,3304.2,2.42114]
[1722219630654,0.06040072,3304.9,3304.2,2.42114]
[1722219630954,0.61040072,3304.9,3304.2,2.42114]
[1722219631455,0.55,3304.9,3304.4,2.42101]
[1722219631601,0.06040072,3304.8,3304.2,2.42112]
[1722219631948,0.55,3305.1,3304.3,2.42107]
[1722219632137,0.55,3305.1,3304.5,2.42092]
[1722219632351,0.55,3305.1,3304.4,2.42099]
[1722219632645,8.44988,3305.4,3304.7,2.42079]
[1722219632646,6.0296,3305.4,3304.7,2.42079]
[1722219632954,2.4486,3305.4,3304.8,0.242079]
[1722219633163,0.06040072,3305.3,3304.4,2.42101]
[1722219633504,2.42048,3305.2,3304.4,2.42101]
[1722219634637,2.4486,3305.4,3304.3,3.0]
[1722219634809,2.4486,3305.4,3304.9,2.42063]
[1722219635006,2.41999,3305.8,3304.8,2.42071]
[1722219635302,2.41984,3306.0,3305.2,2.42036]
[1722219635505,2.7039728,3306.1,3305.0,2.42052]
[1722219635506,2.41998,3305.8,3305.0,2.42052]
[1722219635724,5.1237428,3306.1,3305.4,2.42027]
[1722219635924,5.1237428,3306.1,3304.9,2.42061]
[1722219635925,2.7039728,3306.1,3304.9,2.42061]
[1722219636125,2.41999,3305.8,3305.1,2.42044]
[1722219636411,5.1237528,3306.1,3305.3,2.4203]
[1722219636738,0.51237528,3306.0,3305.0,2.42057]
[1722219636940,2.42007,3305.7,3305.0,2.42057]
[1722219637142,2.3305,3306.1,3304.8,5.48122813]
[1722219637304,2.3503,3306.6,3306.0,2.41982]
[1722219637636,2.3479,3307.1,3306.2,2.41969]
[1722219637939,0.31690595,3307.2,3306.6,2.41938]
[1722219638127,0.31690595,3307.2,3305.5,4.86558599]
[1722219638128,2.3479,3307.6,3306.8,2.41924]
[1722219638301,2.3479,3307.6,3305.7,2.42003]
[1722219638302,5.08345355,3307.6,3306.3,5.94740482]
[1722219638508,2.66475355,3307.6,3306.9,2.41917]
[1722219638825,2.66475355,3307.6,3306.3,5.94740482]
[1722219638826,2.66475355,3307.6,3307.1,2.41902]
[1722219639026,2.3479,3307.6,3307.1,2.41902]